bitfinex/quotes_BTCUSD_20250615
["timestamp","ask_amount","ask_price","bid_price","bid_amount"]
[1749954976642,0.02486064,105730.0,105720.0,0.71817162]
[1749954976848,0.03431851,105730.0,105720.0,0.71817162]
[1749954977257,0.02486064,105730.0,105720.0,0.71817162]
[1749954977467,0.03331851,105730.0,105720.0,0.71817162]
[1749954977675,0.03331851,105730.0,105720.0,0.72017162]
[1749954977877,0.03331851,105730.0,105720.0,0.72117162]
[1749954979235,0.04277647,105730.0,105720.0,0.72117162]
[1749954979459,0.48618131,105730.0,105720.0,0.56737162]
[1749954979672,0.48618131,105730.0,105720.0,0.76073162]
[1749954980112,0.49563936,105730.0,105720.0,0.7512733]
[1749954980877,0.49563936,105730.0,105720.0,0.5579133]
[1749954981059,0.49563936,105730.0,105720.0,0.76073162]
[1749954981269,0.49563936,105730.0,105720.0,0.7512733]
[1749954981700,0.67534301,105730.0,105720.0,0.7512733]
[1749954983421,0.67534301,105730.0,105720.0,0.73235639]
[1749954983635,0.66588532,105730.0,105720.0,0.74181498]
[1749954992276,0.66588532,105730.0,105720.0,0.73235639]
[1749954992467,0.22248048,105730.0,105720.0,0.73235639]
[1749954992671,0.66588532,105730.0,105720.0,0.73235639]
[1749955011788,0.64696949,105730.0,105720.0,0.52007896]
[1749955012032,0.64696949,105730.0,105720.0,0.72221781]
[1749955013530,0.64696949,105730.0,105720.0,0.3309]
[1749955013740,0.64696949,105730.0,105720.0,0.6892179]
[1749955014509,0.64696949,105730.0,105720.0,0.69867675]
[1749955018998,0.64696949,105730.0,105720.0,0.71447675]
[1749955019200,0.63751144,105730.0,105720.0,0.4905]
[1749955021036,0.63751144,105730.0,105720.0,0.2979]
[1749955021237,0.63751144,105730.0,105720.0,0.49046]
[1749955022390,0.63751144,105730.0,105720.0,0.67963896]
[1749955022594,0.63751144,105730.0,105720.0,0.7055979]
[1749955023986,0.63751144,105730.0,105720.0,0.7211979]
[1749955025007,0.63751144,105730.0,105720.0,0.53201894]
[1749955026488,0.63751144,105730.0,105720.0,0.2979]
[1749955026691,0.63751144,105730.0,105720.0,0.49042]
[1749955028830,0.63751144,105730.0,105720.0,0.6890579]
[1749955029039,0.63751144,105730.0,105720.0,0.7211579]
[1749955029974,0.63751144,105730.0,105720.0,0.53197894]
[1749955030182,0.63751144,105730.0,105720.0,0.50692]
[1749955032357,0.63751144,105730.0,105720.0,0.7055579]
[1749955034246,0.1941066,105730.0,105720.0,0.51637894]
[1749955034493,0.63751144,105730.0,105720.0,0.53227894]
[1749955036045,0.63751144,105730.0,105720.0,0.7214579]
[1749955043132,0.63751144,105730.0,105720.0,0.52282]
[1749955043999,0.63751144,105730.0,105720.0,0.50692]
[1749955047775,0.63751144,105730.0,105720.0,0.52232]
[1749955047979,0.63751144,105730.0,105720.0,0.50692]
[1749955049592,0.63751144,105730.0,105720.0,0.49042]
[1749955056675,0.63751144,105730.0,105720.0,0.50682]
[1749955057392,0.63751144,105730.0,105720.0,0.52202]
[1749955060097,0.1941066,105730.0,105720.0,0.72065781]
[1749955060312,0.63751144,105730.0,105720.0,0.52202]
[1749955061930,0.63751144,105730.0,105720.0,0.53147894]
[1749955062497,0.63751144,105730.0,105720.0,0.54093779]
[1749955062782,0.63751144,105730.0,105720.0,0.53147894]
[1749955065124,0.63751144,105730.0,105720.0,0.7206579]
[1749955077268,0.63751144,105730.0,105720.0,0.53147894]
[1749955077891,0.63751144,105730.0,105720.0,0.7206579]
[1749955078129,0.63751144,105730.0,105720.0,0.73011675]
[1749955078530,0.63751144,105730.0,105720.0,0.5067]
[1749955078774,0.63751144,105730.0,105720.0,0.51615894]
[1749955080711,0.63751144,105730.0,105720.0,0.53185894]
[1749955081980,0.1941066,105730.0,105720.0,0.73049675]
[1749955082201,0.63751144,105730.0,105720.0,0.73049675]
[1749955082447,0.63751144,105730.0,105720.0,0.7210379]
[1749955088386,0.63751144,105730.0,105720.0,0.73049675]
[1749955091409,0.1941066,105730.0,105720.0,0.73049675]
[1749955091619,0.63751144,105730.0,105720.0,0.73049675]
[1749955101412,0.63751144,105730.0,105720.0,0.73995551]
[1749955101768,0.63751144,105730.0,105720.0,0.73049675]
[1749955102211,0.63751144,105730.0,105720.0,0.53185894]
[1749955102410,0.63751144,105730.0,105720.0,0.7210379]
[1749955103681,0.1941066,105730.0,105720.0,0.82629572]
[1749955103958,0.63751144,105730.0,105720.0,0.83575448]
[1749955105309,0.63751144,105730.0,105720.0,0.73995551]
[1749955106751,0.1941066,105730.0,105720.0,0.73995551]
[1749955106971,0.63751144,105730.0,105720.0,0.73995551]
[1749955123687,0.63751144,105730.0,105720.0,0.73049675]
[1749955126188,0.1941066,105730.0,105720.0,0.73049675]
[1749955126392,0.63751144,105730.0,105720.0,0.83610473]
[1749955127371,0.63751144,105730.0,105720.0,0.73995551]
[1749955138850,0.63751144,105730.0,105720.0,0.74941418]
[1749955157576,0.00494553,105730.0,105720.0,1.23064122]
[1749955157811,0.00946491,105750.0,105740.0,0.25827037]
[1749955158037,0.6703532,105750.0,105740.0,0.69683402]
[1749955158662,0.66089774,105750.0,105740.0,0.69683402]
[1749955158866,0.65144202,105750.0,105740.0,0.69683402]
[1749955159077,0.65444202,105750.0,105740.0,0.69683402]
[1749955159294,0.65144202,105750.0,105740.0,0.69683402]
[1749955160765,0.65244202,105750.0,105740.0,0.69683402]
[1749955160892,0.66209752,105750.0,105740.0,0.69683402]
[1749955161100,0.66209752,105750.0,105740.0,0.69783402]
[1749955161492,0.66209752,105750.0,105740.0,0.68837722]
[1749955166227,0.64318563,105750.0,105740.0,0.18542]
[1749955166439,1.08659047,105750.0,105740.0,0.21853715]
[1749955166652,1.08659047,105750.0,105740.0,0.20908]
[1749955171765,1.08659047,105750.0,105740.0,0.50398]
[1749955176138,1.08659047,105750.0,105740.0,0.52028]
[1749955178105,1.08659047,105750.0,105740.0,0.52973715]
[1749955180670,1.08659047,105750.0,105740.0,0.72833722]
[1749955180872,1.09604673,105750.0,105740.0,0.72833722]
[1749955181397,0.65264189,105750.0,105740.0,0.72833722]
[1749955188671,0.65264189,105750.0,105740.0,0.72833731]
[1749955188881,1.09604673,105750.0,105740.0,0.72833731]
[1749955194237,0.65264189,105750.0,105740.0,0.72833731]
[1749955195991,0.65264189,105750.0,105740.0,0.71888033]
[1749955196879,0.64318563,105750.0,105740.0,0.52973715]
[1749955197100,1.08659047,105750.0,105740.0,0.52973715]
[1749955197662,1.08659047,105750.0,105740.0,0.52028]
[1749955198080,1.08659047,105750.0,105740.0,0.50398]
[1749955198610,1.08659047,105750.0,105740.0,0.46478]
[1749955199354,0.19978079,105750.0,105740.0,0.46478]
[1749955199586,1.08659047,105750.0,105740.0,0.46478]
[1749955200598,1.08659047,105750.0,105740.0,0.48128]
[1749955200828,0.19978079,105750.0,105740.0,0.48128]
[1749955201051,0.64318563,105750.0,105740.0,0.51029451]
[1749955201278,0.64318563,105750.0,105740.0,0.48128]
[1749955203541,0.64318563,105750.0,105740.0,0.52048]
[1749955224245,1.08659047,105750.0,105740.0,0.52048]
[1749955228028,1.08208446,105750.0,105740.0,0.52048]
[1749955228864,1.08208446,105750.0,105740.0,0.56508607]
[1749955230397,1.08208446,105750.0,105740.0,0.52048]
[1749955236736,1.45408446,105750.0,105740.0,0.2959]
[1749955236926,1.55032622,105750.0,105740.0,0.15404]
[1749955237389,1.55032622,105750.0,105740.0,0.001]
[1749955255442,1.53412622,105750.0,105740.0,0.001]
[1749955258583,1.51832622,105750.0,105740.0,0.001]
[1749955278733,1.51832622,105750.0,105740.0,0.0174]
[1749955283125,1.51832622,105750.0,105740.0,0.001]
[1749955283933,1.51832622,105750.0,105740.0,0.0174]
[1749955284698,1.51832622,105750.0,105740.0,0.0338]
[1749955299354,1.29492138,105750.0,105740.0,0.0338]
[1749955299570,1.00813588,105750.0,105740.0,0.24713079]
[1749955299800,1.00813588,105750.0,105740.0,0.25131366]
[1749955299801,0.84242804,105750.0,105740.0,0.25131366]
[1749955300023,1.04100959,105750.0,105740.0,0.24185704]
[1749955300242,1.04100959,105750.0,105740.0,0.25131375]
[1749955300941,1.03155396,105750.0,105740.0,0.24185722]
[1749955301174,1.02209806,105750.0,105740.0,0.24185722]
[1749955302033,1.02209806,105750.0,105740.0,0.53675722]
[1749955302823,1.02209806,105750.0,105740.0,0.68975722]
[1749955305021,1.02209806,105750.0,105740.0,0.69921411]
[1749955305245,1.02209806,105750.0,105740.0,0.73837411]
[1749955305938,1.01264189,105750.0,105740.0,0.72891722]
[1749955306541,1.00318563,105750.0,105740.0,0.71946024]
[1749955308912,1.00318563,105750.0,105740.0,0.52086]
[1749955309356,1.00318563,105750.0,105740.0,0.71946033]
[1749955314355,1.00318563,105750.0,105740.0,0.53031715]
[1749955316282,1.00318563,105750.0,105740.0,0.52086]
[1749955319552,1.00318563,105750.0,105740.0,0.4817]
[1749955329524,1.00318563,105750.0,105740.0,0.49115715]
[1749955329736,1.00318563,105750.0,105740.0,0.50061421]
[1749955330169,1.00318563,105750.0,105740.0,0.68975739]
[1749955330708,1.00318563,105750.0,105740.0,0.72887739]
[1749955332416,1.00318563,105750.0,105740.0,0.73833437]
[1749955332625,1.01206328,105750.0,105740.0,0.73833437]
[1749955332846,1.00318563,105750.0,105740.0,0.73833437]
[1749955333684,1.00318563,105750.0,105740.0,0.74779126]
[1749955336744,1.00318563,105750.0,105740.0,0.73833437]
[1749955342957,1.00318563,105750.0,105740.0,0.72887739]
[1749955343399,1.00318563,105750.0,105740.0,0.72879739]
[1749955343808,1.44659047,105750.0,105740.0,0.72879739]
[1749955344408,1.44659047,105750.0,105740.0,0.53675739]
[1749955344631,1.44659047,105750.0,105740.0,0.72879739]
[1749955348391,1.44659047,105750.0,105740.0,0.68967739]
[1749955349457,1.44659047,105750.0,105740.0,0.48162]
[1749955353127,1.44659047,105750.0,105740.0,0.3123]
[1749955353353,1.47959047,105750.0,105740.0,0.44882]
[1749955355208,1.47959047,105750.0,105740.0,0.15392]
[1749955357881,1.46309047,105750.0,105740.0,0.15392]
[1749955361624,1.46309047,105750.0,105740.0,0.001]
[1749955361838,1.46309047,105750.0,105740.0,0.15392]
[1749955363921,1.44659047,105750.0,105740.0,0.15392]
[1749955366096,1.44659047,105750.0,105740.0,0.001]
[1749955366301,1.44659047,105750.0,105740.0,0.15392]
[1749955369765,1.44659047,105750.0,105740.0,0.001]
[1749955369971,1.44659047,105750.0,105740.0,0.15392]
[1749955370170,1.4994973,105750.0,105740.0,0.15392]
[1749955370349,1.44659047,105750.0,105740.0,0.15392]
[1749955371919,1.44659047,105750.0,105740.0,0.001]
[1749955372121,1.44659047,105750.0,105740.0,0.15392]
[1749955373000,1.55903223,105750.0,105740.0,0.001]
[1749955373211,1.57413223,105750.0,105740.0,0.001]
[1749955374267,1.55903223,105750.0,105740.0,0.001]
[1749955377999,1.54283223,105750.0,105740.0,0.001]
[1749955378682,1.55903223,105750.0,105740.0,0.001]
[1749955379526,1.54283223,105750.0,105740.0,0.001]
[1749955380703,1.55903223,105750.0,105740.0,0.001]
[1749955385414,1.54283223,105750.0,105740.0,0.001]
[1749955396844,1.53791199,105750.0,105740.0,0.001]
[1749955400597,1.57001199,105750.0,105740.0,0.001]
[1749955401025,1.60783512,105750.0,105740.0,0.001]
[1749955403063,1.60291482,105750.0,105740.0,0.001]
[1749955407843,1.58671482,105750.0,105740.0,0.001]
[1749955414068,1.57081482,105750.0,105740.0,0.001]
[1749955422204,1.57081482,105750.0,105740.0,0.0166]
[1749955422658,0.66400514,105750.0,105740.0,0.0324]
[1749955422867,1.77081482,105750.0,105740.0,0.0324]
[1749955423079,1.73299169,105750.0,105740.0,0.0324]
[1749955423946,1.77081482,105750.0,105740.0,0.0324]
[1749955424137,1.73299169,105750.0,105740.0,0.0324]
[1749955424540,1.77081482,105750.0,105740.0,0.0324]
[1749955424764,1.73299169,105750.0,105740.0,0.0324]
[1749955425391,1.77081482,105750.0,105740.0,0.0324]
[1749955425595,1.73299169,105750.0,105740.0,0.0324]
[1749955427373,1.28958685,105750.0,105740.0,0.0324]
[1749955427583,1.73299169,105750.0,105740.0,0.0324]
[1749955428451,1.43674993,105750.0,105740.0,0.0324]
[1749955442610,1.54929169,105750.0,105740.0,0.001]
[1749955443265,1.53299169,105750.0,105740.0,0.001]
[1749955446373,1.53299169,105750.0,105740.0,0.0167]
[1749955450747,1.53299169,105750.0,105740.0,0.0319]
[1749955453483,1.53299169,105750.0,105740.0,0.001]
[1749955457950,1.53299169,105750.0,105740.0,0.0174]
[1749955459382,1.53299169,105750.0,105740.0,0.0331]
[1749955462085,1.53299169,105750.0,105740.0,0.001]
[1749955462289,1.54879169,105750.0,105740.0,0.001]
[1749955462744,1.53299169,105750.0,105740.0,0.001]
[1749955465346,0.64618201,105750.0,105740.0,0.001]
[1749955475878,0.64618201,105750.0,105740.0,0.0161]
[1749955479535,0.64618201,105750.0,105740.0,0.032]
[1749955500328,0.84618201,105750.0,105740.0,0.032]
[1749955500538,0.64618201,105750.0,105740.0,0.032]
[1749955501589,0.62618201,105750.0,105740.0,0.032]
[1749955501847,0.64618201,105750.0,105740.0,0.032]
[1749955502062,0.54994025,105750.0,105740.0,0.25094633]
[1749955502309,0.54994025,105750.0,105740.0,0.032]
[1749955502528,0.54994025,105750.0,105740.0,0.23060033]
[1749955503714,0.54994025,105750.0,105740.0,0.032]
[1749955504536,0.54994025,105750.0,105740.0,0.1848]
[1749955510995,0.54994025,105750.0,105740.0,0.22384]
[1749955532852,0.54994025,105750.0,105740.0,0.46891831]
[1749955533309,0.54994025,105750.0,105740.0,0.45946116]
[1749955534065,0.55939651,105750.0,105740.0,0.47837529]
[1749955536243,0.55939651,105750.0,105740.0,0.43189731]
[1749955538760,0.55939651,105750.0,105740.0,0.72679731]
[1749955539851,0.55939651,105750.0,105740.0,0.71734033]
[1749955540992,0.55939651,105750.0,105740.0,0.72679739]
[1749955545480,0.55939651,105750.0,105740.0,0.71734033]
[1749955548485,0.56827429,105750.0,105740.0,0.76503178]
[1749955549364,0.55939651,105750.0,105740.0,0.76503178]
[1749955549563,0.56827429,105750.0,105740.0,0.76503178]
[1749955549780,0.56827428,105750.0,105740.0,0.76503178]
[1749955550172,0.55939651,105750.0,105740.0,0.77448884]
[1749955552184,0.5682743,105750.0,105740.0,0.77448884]
[1749955552418,0.55939651,105750.0,105740.0,0.77448884]
[1749955552861,0.55939651,105750.0,105740.0,0.72679739]
[1749955555744,0.55939651,105750.0,105740.0,0.71734033]
[1749955559682,0.54994025,105750.0,105740.0,0.71734033]
[1749955561188,0.54994025,105750.0,105740.0,0.52815706]
[1749955561409,0.54994025,105750.0,105740.0,0.5187]
[1749955562244,0.54994025,105750.0,105740.0,0.2238]
[1749955562453,0.56584025,105750.0,105740.0,0.1928]
[1749955564656,0.54994025,105750.0,105740.0,0.1928]
[1749955565957,0.54994025,105750.0,105740.0,0.15376]
[1749955566775,0.54994025,105750.0,105740.0,0.001]
[1749955567011,0.67648201,105750.0,105740.0,0.001]
[1749955574619,0.70488094,105750.0,105740.0,0.001]
[1749955575682,0.67648201,105750.0,105740.0,0.001]
[1749955579630,0.70488094,105750.0,105740.0,0.001]
[1749955580946,0.68978094,105750.0,105740.0,0.001]
[1749955587215,0.67458094,105750.0,105740.0,0.001]
[1749955591450,0.69028094,105750.0,105740.0,0.001]
[1749955592517,0.67458094,105750.0,105740.0,0.001]
[1749955592729,0.69058094,105750.0,105740.0,0.001]
[1749955593880,0.70628094,105750.0,105740.0,0.001]
[1749955594105,0.69058094,105750.0,105740.0,0.001]
[1749955595475,0.67458094,105750.0,105740.0,0.001]
[1749955601844,0.67458259,105750.0,105740.0,0.001]
[1749955603703,0.71240572,105750.0,105740.0,0.001]
[1749955604896,0.71240572,105750.0,105740.0,0.0169]
[1749955605139,0.91240572,105750.0,105740.0,0.0328]
[1749955605372,0.87458259,105750.0,105740.0,0.0328]
[1749955610843,0.65458259,105750.0,105740.0,0.0328]
[1749955611050,0.87458259,105750.0,105740.0,0.0328]
[1749955613486,0.65458259,105750.0,105740.0,0.0328]
[1749955613733,0.87458259,105750.0,105740.0,0.0328]
[1749955617057,0.65458259,105750.0,105740.0,0.0328]
[1749955617280,0.87458259,105750.0,105740.0,0.0328]
[1749955617729,0.65458259,105750.0,105740.0,0.0328]
[1749955617961,0.87458259,105750.0,105740.0,0.0328]
[1749955638134,0.65458259,105750.0,105740.0,0.0328]
[1749955638579,0.87458259,105750.0,105740.0,0.0328]
[1749955644541,0.84618201,105750.0,105740.0,0.0328]
[1749955644749,0.87459066,105750.0,105740.0,0.0328]
[1749955648600,0.84618201,105750.0,105740.0,0.0328]
[1749955648809,0.87459055,105750.0,105740.0,0.0328]
[1749955659071,0.87459055,105750.0,105740.0,0.001]
[1749955660302,0.87459055,105750.0,105740.0,0.0168]
[1749955664888,0.87459055,105750.0,105740.0,0.0326]
[1749955670290,0.87459055,105750.0,105740.0,0.0168]
[1749955670501,0.87459055,105750.0,105740.0,0.001]
[1749955673065,0.87459055,105750.0,105740.0,0.0168]
[1749955674302,0.87459055,105750.0,105740.0,0.0326]
[1749955675827,0.87459055,105750.0,105740.0,0.0168]
[1749955678282,0.87459055,105750.0,105740.0,0.001]
[1749955678956,0.92749738,105750.0,105740.0,0.001]
[1749955679177,0.87459055,105750.0,105740.0,0.001]
[1749955684777,0.88989055,105750.0,105740.0,0.001]
[1749955686887,0.87459055,105750.0,105740.0,0.001]
[1749955689146,0.87459292,105750.0,105740.0,0.001]
[1749955704912,0.87459292,105750.0,105740.0,0.0334]
[1749955719416,0.84618201,105750.0,105740.0,0.0334]
[1749955719577,0.87458255,105750.0,105740.0,0.0334]
[1749955720260,0.84618201,105750.0,105740.0,0.0334]
[1749955733319,0.87458094,105750.0,105740.0,0.0334]
[1749955736697,0.87458506,105750.0,105740.0,0.0334]
[1749955747007,1.76153588,105750.0,105740.0,0.0334]
[1749955750435,1.76153588,105750.0,105740.0,0.0173]
[1749955750641,1.76153588,105750.0,105740.0,0.001]
[1749955751857,1.76153588,105750.0,105740.0,0.017]
[1749955756413,1.76153588,105750.0,105740.0,0.0331]
[1749955759010,1.76153588,105750.0,105740.0,0.017]
[1749955760164,1.76153588,105750.0,105740.0,0.0331]
[1749955763898,1.76153588,105750.0,105740.0,0.017]
[1749955764321,1.76153588,105750.0,105740.0,0.0324]
[1749955765209,1.76153588,105750.0,105740.0,0.001]
[1749955765429,1.77743588,105750.0,105740.0,0.001]
[1749955765559,1.76153588,105750.0,105740.0,0.001]
[1749955768284,1.77753588,105750.0,105740.0,0.001]
[1749955769311,1.76153588,105750.0,105740.0,0.001]
[1749955773700,1.76153588,105750.0,105740.0,0.0161]
[1749955774118,1.76153588,105750.0,105740.0,0.0321]
[1749955791304,1.76153588,105750.0,105740.0,0.0311]
[1749955804757,0.20807654,105730.0,105720.0,0.26725794]
[1749955804969,0.65155195,105730.0,105720.0,0.26725794]
[1749955805178,0.65155195,105730.0,105720.0,0.29975794]
[1749955805616,0.6564974,105730.0,105720.0,0.29975794]
[1749955806536,0.6564974,105730.0,105720.0,0.22414]
[1749955806953,0.6564974,105730.0,105720.0,0.22714]
[1749955807983,0.6564974,105730.0,105720.0,0.23114]
[1749955824071,0.21302199,105730.0,105720.0,0.23114]
[1749955824282,0.6564974,105730.0,105720.0,0.23114]
[1749955827057,0.6564974,105730.0,105720.0,0.0395]
[1749955827271,0.6564974,105730.0,105720.0,0.23114]
[1749955834507,0.70940423,105730.0,105720.0,0.23114]
[1749955834710,0.6564974,105730.0,105720.0,0.23114]
[1749955845578,0.6564974,105730.0,105720.0,0.07846]
[1749955845796,1.78821457,105730.0,105720.0,0.007]
[1749955847547,1.34473916,105730.0,105720.0,0.004]
[1749955847764,1.34473916,105730.0,105710.0,0.20207337]
[1749955847765,0.19863772,105720.0,105710.0,0.20207337]
[1749955847973,0.64211313,105720.0,105710.0,0.20207337]
[1749955848825,0.64211313,105720.0,105710.0,0.21747337]
[1749955849039,0.64211313,105720.0,105710.0,0.22047337]
[1749955849249,0.64211313,105720.0,105710.0,0.22447337]
[1749955852100,0.64211313,105720.0,105710.0,0.07183337]
[1749955852307,1.08558854,105720.0,105710.0,0.22451337]
[1749955852713,0.64211313,105720.0,105710.0,0.22451337]
[1749955853976,1.08558854,105720.0,105710.0,0.22451337]
[1749955855699,0.64211313,105720.0,105710.0,0.22451337]
[1749955860328,0.64211313,105720.0,105710.0,0.20911337]
[1749955863450,0.64211313,105720.0,105710.0,0.17015337]
[1749955864284,0.64211313,105720.0,105710.0,0.18675337]
[1749955864764,0.64211313,105720.0,105710.0,0.20275337]
[1749955879455,0.98211313,105720.0,105710.0,0.18675337]
[1749955880136,0.98211313,105720.0,105710.0,0.20245337]
[1749955887152,0.54809639,105720.0,105710.0,0.39165022]
[1749955887377,0.54809639,105720.0,105710.0,0.40110988]
[1749955888053,0.53863772,105720.0,105710.0,0.40111006]
[1749955888264,0.53863772,105720.0,105710.0,0.41056981]
[1749955888501,0.53863772,105720.0,105710.0,0.50671903]
[1749955888711,0.53863772,105720.0,105710.0,0.30806243]
[1749955888932,0.98211313,105720.0,105710.0,0.30806243]
[1749955889160,0.97265437,105720.0,105710.0,0.30806243]
[1749955889377,0.99265437,105720.0,105710.0,0.30806243]
[1749955889946,0.99265437,105720.0,105710.0,0.29860259]
[1749955890785,0.99265437,105720.0,105710.0,0.20245337]
[1749955892938,0.99265437,105720.0,105710.0,0.24141337]
[1749955897179,0.54917896,105720.0,105710.0,0.24141337]
[1749955897625,0.99265437,105720.0,105710.0,0.24141337]
[1749955898023,0.54917896,105720.0,105710.0,0.25087321]
[1749955898326,0.99265437,105720.0,105710.0,0.25087321]
[1749955899129,0.99265437,105720.0,105710.0,0.24141337]
[1749955901720,0.99265437,105720.0,105710.0,0.33756259]
[1749955902437,0.99265437,105720.0,105710.0,0.53621928]
[1749955902638,0.99265437,105720.0,105710.0,0.54567903]
[1749955903974,0.99265437,105720.0,105710.0,0.24843006]
[1749955904198,0.99265437,105720.0,105710.0,0.44003006]
[1749955905358,0.99265437,105720.0,105710.0,0.73493006]
[1749955908766,0.99265437,105720.0,105710.0,0.53627337]
[1749955917462,0.54917896,105720.0,105710.0,0.53627337]
[1749955917708,0.99265437,105720.0,105710.0,0.53627337]
[1749955919645,0.99265437,105720.0,105710.0,0.73492997]
[1749955921111,0.99265437,105720.0,105710.0,0.74438963]
[1749955921325,1.01157198,105720.0,105710.0,0.76330868]
[1749955921541,1.01157198,105720.0,105710.0,0.7538492]
[1749955921759,1.01157198,105720.0,105710.0,0.74438963]
[1749955923343,1.01157198,105720.0,105710.0,0.7538492]
[1749955923550,0.99157198,105720.0,105710.0,0.7538492]
[1749955924449,0.99157198,105720.0,105710.0,0.76330868]
[1749955925188,0.99157198,105720.0,105710.0,0.7538492]
[1749955926845,0.99157198,105720.0,105710.0,0.76330868]
[1749955927052,0.99157198,105720.0,105710.0,0.74438963]
[1749955927458,0.99157198,105720.0,105710.0,0.7538492]
[1749955927659,0.98211331,105720.0,105710.0,0.7538492]
[1749955928812,0.98211331,105720.0,105710.0,0.76330868]
[1749955929026,0.98211331,105720.0,105710.0,0.4589492]
[1749955929423,0.98211331,105720.0,105710.0,0.44948963]
[1749955933974,0.97265437,105720.0,105710.0,0.44002997]
[1749955934910,0.97265437,105720.0,105710.0,0.73492997]
[1749955936918,0.97265437,105720.0,105710.0,0.74438963]
[1749955940118,0.97265437,105720.0,105710.0,0.55278963]
[1749955940345,0.97265437,105720.0,105710.0,0.74434963]
[1749955951026,0.97265437,105720.0,105710.0,0.73488997]
[1749955969739,0.97265437,105720.0,105710.0,0.71828997]
[1749955969947,0.97265437,105720.0,105710.0,0.70258997]
[1749955972176,0.97265437,105720.0,105710.0,0.50393337]
[1749955972792,0.97265437,105720.0,105710.0,0.51339321]
[1749955977699,0.97265437,105720.0,105710.0,0.51335321]
[1749955977838,0.97265437,105720.0,105710.0,0.50389337]
[1749955978053,0.97265437,105720.0,105710.0,0.51335321]
[1749955981208,0.97265437,105720.0,105710.0,0.50389337]
[1749955983909,0.97265437,105720.0,105710.0,0.31237337]
[1749955984135,0.97265437,105720.0,105710.0,0.50389337]
[1749955986505,0.97265437,105720.0,105710.0,0.51335321]
[1749955986966,0.97265437,105720.0,105710.0,0.50389337]
[1749955990176,0.97265437,105720.0,105710.0,0.31237337]
[1749955990396,1.41612978,105720.0,105710.0,0.31237337]
[1749955990604,1.41612978,105720.0,105710.0,0.50385337]
[1749955990809,0.97265437,105720.0,105710.0,0.50385337]
[1749955991692,0.97265437,105720.0,105710.0,0.49985337]
[1749955991897,1.41612978,105720.0,105710.0,0.49985337]
[1749955992595,1.41612978,105720.0,105710.0,0.49685337]
[1749955994045,1.41612978,105720.0,105710.0,0.20195337]
[1749955997679,1.41612978,105720.0,105710.0,0.01047337]
[1749955997897,1.41612978,105720.0,105710.0,0.16303337]
[1749955998520,1.41612978,105720.0,105710.0,0.01047337]
[1749955998774,1.41612978,105720.0,105710.0,0.16303337]
[1749956002284,1.41612978,105720.0,105710.0,0.01047337]
[1749956002494,1.41612978,105720.0,105710.0,0.16303337]
[1749956006037,1.41612978,105720.0,105710.0,0.19403337]
[1749956017199,1.41612978,105720.0,105710.0,0.04147337]
[1749956017407,1.41612978,105720.0,105710.0,0.19403337]
[1749956019386,0.52917896,105720.0,105710.0,0.19403337]
[1749956019611,1.41612978,105720.0,105710.0,0.19403337]
[1749956020877,0.97265437,105720.0,105710.0,0.19403337]
[1749956027927,0.97257928,105720.0,105710.0,0.19403337]
[1749956028141,1.41605469,105720.0,105710.0,0.19403337]
[1749956041744,1.41605469,105720.0,105710.0,0.04147337]
[1749956041949,1.41605469,105720.0,105710.0,0.19403337]
[1749956045111,0.52910387,105720.0,105710.0,0.04147337]
[1749956045323,1.41605469,105720.0,105710.0,0.04147337]
[1749956046829,1.71229645,105720.0,105710.0,0.02637337]
[1749956047042,1.71229645,105720.0,105710.0,0.01047337]
[1749956048340,0.82534563,105720.0,105710.0,0.01047337]
[1749956048554,1.71229645,105720.0,105710.0,0.01047337]
[1749956051138,1.91229645,105720.0,105710.0,0.01047337]
[1749956051353,1.92779645,105720.0,105710.0,0.01047337]
[1749956052731,1.93079645,105720.0,105710.0,0.01047337]
[1749956053149,1.93279645,105720.0,105710.0,0.01047337]
[1749956053981,2.1973373,105720.0,105710.0,0.01047337]
[1749956054200,1.66005201,105690.0,105680.0,0.0159]
[1749956054412,1.66005201,105690.0,105670.0,0.07008]
[1749956054413,0.1987129,105680.0,105670.0,0.07008]
[1749956054643,0.3449459,105690.0,105680.0,0.22045056]
[1749956054854,0.36386799,105690.0,105680.0,0.75042271]
[1749956055068,0.3827908,105690.0,105680.0,0.7598854]
[1749956055274,0.39225243,105690.0,105680.0,0.45089966]
[1749956055726,0.38279152,105690.0,105680.0,0.45089966]
[1749956056153,0.38279152,105690.0,105680.0,0.90387697]
[1749956057024,0.57202418,105690.0,105680.0,0.45093966]
[1749956057668,0.58167071,105690.0,105680.0,0.45093966]
[1749956058099,1.02514612,105690.0,105680.0,0.45093966]
[1749956059757,0.83096738,105690.0,105680.0,0.45093966]
[1749956060255,1.02020004,105690.0,105680.0,0.45093966]
[1749956060484,1.02020004,105690.0,105680.0,0.45093984]
[1749956060662,1.02020004,105690.0,105680.0,0.46040183]
[1749956064804,1.02020004,105690.0,105680.0,0.45093984]
[1749956065343,1.02020004,105690.0,105680.0,0.75530192]
[1749956065855,1.02020004,105690.0,105680.0,0.74583984]
[1749956066071,1.01073886,105690.0,105680.0,0.74583984]
[1749956066275,1.01073886,105690.0,105680.0,0.75530192]
[1749956066480,1.01073886,105690.0,105680.0,0.74583984]
[1749956066994,0.56726345,105690.0,105680.0,0.74583984]
[1749956067220,1.01073886,105690.0,105680.0,0.75530192]
[1749956067642,0.56726345,105690.0,105680.0,0.75530192]
[1749956067847,1.01073886,105690.0,105680.0,0.75530192]
[1749956069924,1.01073886,105690.0,105680.0,0.54373759]
[1749956070132,1.01073886,105690.0,105680.0,0.69745759]
[1749956074761,1.01073886,105690.0,105680.0,0.69745767]
[1749956077565,1.01073886,105690.0,105680.0,0.70691984]
[1749956078111,1.01073886,105690.0,105680.0,0.70246853]
[1749956078315,1.00127759,105690.0,105680.0,0.70246853]
[1749956079922,1.00127759,105690.0,105680.0,0.74202853]
[1749956080205,1.00127759,105690.0,105680.0,0.73256636]
[1749956080764,1.00127759,105690.0,105680.0,0.74202853]
[1749956081645,0.55780218,105690.0,105680.0,0.74202853]
[1749956082749,0.55780218,105690.0,105680.0,0.73256636]
[1749956085780,0.55780218,105690.0,105680.0,0.74202853]
[1749956086210,0.55780218,105690.0,105680.0,0.73256636]
[1749956088680,0.55780218,105690.0,105680.0,0.74202853]
[1749956089109,0.55780218,105690.0,105680.0,0.73256636]
[1749956089368,1.00127759,105690.0,105680.0,0.74202853]
[1749956090513,1.00127759,105690.0,105680.0,0.54874853]
[1749956090719,1.00127759,105690.0,105680.0,0.74182853]
[1749956094732,1.00127759,105690.0,105680.0,0.73236636]
[1749956096864,0.55780218,105690.0,105680.0,0.74182853]
[1749956097104,1.00127759,105690.0,105680.0,0.74182853]
[1749956097978,1.00127759,105690.0,105680.0,0.73236636]
[1749956098484,1.00127759,105690.0,105680.0,0.74182853]